lending/lending_fUSD_20240824
["ID","MTS","AMOUNT","RATE_DAILY","PERIOD"]
[335730795,1724467832619,-150.0,0.00010835,2]
[335730796,1724467832628,-150.0,0.00010841,2]
[335730797,1724467832638,-168.64300694,0.00010844,2]
[335730798,1724467832648,-150.0,0.00010848,2]
[335730799,1724467832657,-150.0,0.00010851,2]
[335730800,1724467832667,-150.0,0.00010852,2]
[335730801,1724467832676,-150.0,0.00010855,2]
[335730802,1724467832685,-150.0,0.00010857,2]
[335730803,1724467832696,-345.3606346,0.00010858,2]
[335730804,1724467832706,-7500.0,0.00010858,2]
[335730805,1724467832715,-150.0,0.0001086,2]
[335730806,1724467832725,-468.3275992,0.00010861,2]
[335730807,1724467832734,-504.55223227,0.00010861,2]
[335730808,1724467832744,-191.21629148,0.00010861,2]
[335730809,1724467832753,-155.13293556,0.00010862,2]
[335730810,1724467832762,-150.0,0.00010866,2]
[335730811,1724467832771,-150.0,0.00010869,2]
[335730812,1724467832781,-150.0,0.00010869,2]
[335730813,1724467832794,-150.0,0.00010872,2]
[335730814,1724467832803,-150.0,0.00010877,2]
[335730815,1724467832812,-150.0,0.00010877,2]
[335730816,1724467832821,-150.0,0.00010878,2]
[335730817,1724467832832,-150.0,0.00010879,2]
[335730818,1724467832842,-150.0,0.00010884,2]
[335730819,1724467832852,-150.0,0.00010885,2]
[335730820,1724467832862,-150.0,0.00010887,2]
[335730821,1724467832873,-204.07619098,0.00010888,2]
[335730822,1724467832883,-163.3758477,0.00010888,2]
[335730823,1724467832893,-150.0,0.00010888,2]
[335730824,1724467832904,-1796.92706,0.0001089,2]
[335730825,1724467832913,-150.0,0.00010891,2]
[335730826,1724467832923,-150.0,0.00010893,2]
[335730827,1724467832932,-150.0,0.00010895,2]
[335730828,1724467832942,-171.02524515,0.00010898,2]
[335730829,1724467832951,-361.27558183,0.00010898,2]
[335730830,1724467832961,-150.0,0.00010899,2]
[335730831,1724467832970,-222.78425431,0.00010899,2]
[335730832,1724467832979,-222.7842543,0.000109,2]
[335730833,1724467832990,-245000.0,0.000109,2]
[335730834,1724467832999,-150.0,0.000109,2]
[335730835,1724467833008,-171.02524515,0.000109,2]
[335730836,1724467833017,-222.7842543,0.000109,2]
[335730837,1724467833027,-150.0,0.00010909,2]
[335730838,1724467833036,-150.0,0.00010917,2]
[335730839,1724467833045,-150.0,0.00010921,2]
[335730840,1724467833054,-150.0,0.00010931,2]
[335730841,1724467833063,-150.0,0.0001094,2]
[335730842,1724467833073,-150.0,0.00010941,2]
[335730843,1724467833082,-150.0,0.00010942,2]
[335730844,1724467833091,-150.0,0.00010943,2]
[335730845,1724467833101,-150.0,0.00010944,2]
[335730846,1724467833110,-150.0,0.00010945,2]
[335730847,1724467833119,-150.0,0.00010947,2]
[335730848,1724467833129,-150.0,0.00010948,2]
[335730849,1724467833138,-152.31,0.00010948,2]
[335730850,1724467833147,-150.0,0.00010949,2]
[335730851,1724467833156,-150.0,0.0001095,2]
[335730852,1724467833166,-150.0,0.00010954,2]
[335730853,1724467833175,-6739.52938302,0.00010957,2]
[335730854,1724467833184,-530.87196993,0.00010958,2]
[335730855,1724467833193,-500.0,0.00010958,2]
[335730856,1724467833203,-619.06570487,0.00010958,2]
[335730857,1724467833212,-500.0,0.00010958,2]
[335730858,1724467833222,-500.0,0.00010958,2]
[335730859,1724467833231,-166.80964392,0.00010958,2]
[335730860,1724467833240,-500.0,0.00010958,2]
[335730861,1724467833249,-500.0,0.00010958,2]
[335730862,1724467833259,-500.0,0.00010958,2]
[335730863,1724467833268,-334.36168568,0.00010958,2]
[335730864,1724467833278,-500.0,0.00010958,2]
[335730865,1724467833287,-500.0,0.00010958,2]
[335730866,1724467833296,-500.0,0.00010958,2]
[335730867,1724467833305,-500.0,0.00010958,2]
[335730868,1724467833314,-500.0,0.00010958,2]
[335730869,1724467833324,-500.0,0.00010958,2]
[335730870,1724467833333,-875.67,0.00010958,2]
[335730871,1724467833342,-875.67,0.00010958,2]
[335730872,1724467833351,-574.60359629,0.00010958,2]
[335730873,1724467833361,-525.66,0.00010958,2]
[335730874,1724467833370,-525.66,0.00010958,2]
[335730875,1724467833527,-1380.20625704,0.00010958,2]
[335730876,1724467833541,-736.40374296,0.00010958,2]
[335730877,1724467833550,-493.61385561,0.00010958,2]
[335730878,1724467833562,-1622.99614439,0.00010958,2]
[335730879,1724467833572,-627.79348704,0.00010958,2]
[335730880,1724467833581,-263.93702355,0.00010958,2]
[335730881,1724467833593,-236.06297645,0.00010958,2]
[335730882,1724467833602,-500.0,0.00010958,2]
[335730883,1724467833611,-544.25136761,0.00010958,2]
[335730884,1724467833621,-516.24676963,0.00010958,2]
[335730885,1724467833630,-517.65334165,0.00010958,2]
[335730886,1724467833639,-540.04930802,0.00010958,2]
[335730887,1724467833648,-554.80570215,0.00010958,2]
[335730888,1724467833657,-532.71889096,0.00010958,2]
[335730889,1724467833667,-537.63943832,0.00010958,2]
[335730890,1724467833676,-150.0,0.00010958,2]
[335730891,1724467833685,-500.0,0.00010958,2]
[335730892,1724467833694,-500.0,0.00010958,2]
[335730893,1724467833703,-500.0,0.00010958,2]
[335730894,1724467833712,-500.0,0.00010958,2]
[335730895,1724467833721,-500.0,0.00010958,2]
[335730896,1724467833731,-500.0,0.00010958,2]
[335730897,1724467833740,-500.0,0.00010958,2]
[335730898,1724467833750,-500.0,0.00010958,2]
[335730899,1724467833759,-500.0,0.00010958,2]
[335730900,1724467833768,-500.0,0.00010958,2]
[335730901,1724467833777,-500.0,0.00010958,2]
[335730902,1724467833790,-500.0,0.00010958,2]
[335730903,1724467833800,-9100.5,0.00010958,2]
[335730904,1724467833809,-3186.5709001,0.00010958,2]
[335730905,1724467833821,-3586.11267,0.00010958,2]
[335730906,1724467833846,-1215.07590594,0.00010958,2]
[335730907,1724467833857,-1112.74052396,0.00010958,2]
[335730908,1724467833868,-203.88105209,0.00010958,2]
[335730909,1724467833878,-1955.65,0.00010958,2]
[335730910,1724467833887,-1955.65,0.00010958,2]
[335730911,1724467833897,-500.0,0.00010958,2]
[335730912,1724467833906,-500.0,0.00010958,2]
[335730913,1724467833915,-500.0,0.00010958,2]
[335730914,1724467833924,-500.0,0.00010958,2]
[335730915,1724467833933,-500.0,0.00010958,2]
[335730916,1724467833943,-500.0,0.00010958,2]
[335730917,1724467833952,-1974.65,0.00010958,2]
[335730918,1724467833961,-1974.65,0.00010958,2]
[335730919,1724467833971,-705.39,0.00010958,2]
[335730920,1724467833981,-705.39,0.00010958,2]
[335730921,1724467833993,-2011.02,0.00010958,2]
[335730922,1724467834002,-2807.87,0.00010958,2]
[335730923,1724467834011,-2807.87,0.00010958,2]
[335730924,1724467834021,-2011.02,0.00010958,2]
[335730925,1724467834030,-500.0,0.00010958,2]
[335730926,1724467834040,-500.0,0.00010958,2]
[335730927,1724467834049,-500.0,0.00010958,2]
[335730928,1724467834058,-500.0,0.00010958,2]
[335730929,1724467834068,-500.0,0.00010958,2]
[335730930,1724467834078,-500.0,0.00010958,2]
[335730931,1724467834087,-10167.62,0.00010958,2]
[335730932,1724467834096,-10167.62,0.00010958,2]
[335730933,1724467834105,-500.0,0.00010958,2]
[335730934,1724467834117,-500.0,0.00010958,2]
[335730935,1724467834128,-570.02,0.00010958,2]
[335730936,1724467834137,-570.02,0.00010958,2]
[335730937,1724467834146,-500.0,0.00010958,2]
[335730938,1724467834155,-500.0,0.00010958,2]
[335730939,1724467834164,-500.0,0.00010958,2]
[335730940,1724467834173,-513.89801611,0.00010958,2]
[335730941,1724467834182,-500.0,0.00010958,2]
[335730942,1724467834191,-442.7993065,0.00010958,2]
[335730943,1724467834201,-7744.13,0.00010958,2]
[335730944,1724467834210,-7744.13,0.00010958,2]
[335730945,1724467834220,-500.0,0.00010958,2]
[335730946,1724467834229,-500.0,0.00010958,2]
[335730947,1724467834239,-500.0,0.00010958,2]
[335730948,1724467834248,-500.0,0.00010958,2]
[335730949,1724467834257,-1197.02,0.00010958,2]
[335730950,1724467834266,-1197.02,0.00010958,2]
[335730951,1724467834275,-505.82581073,0.00010958,2]
[335730952,1724467834284,-500.0,0.00010958,2]
[335730953,1724467834293,-500.0,0.00010958,2]
[335730954,1724467834303,-500.0,0.00010958,2]
[335730955,1724467834312,-500.0,0.00010958,2]
[335730956,1724467834321,-49718.1,0.00010958,2]
[335730957,1724467834332,-49718.1,0.00010958,2]
[335730958,1724467834341,-500.0,0.00010958,2]
[335730959,1724467834350,-500.0,0.00010958,2]
[335730960,1724467834360,-924.39,0.00010958,2]
[335730961,1724467834369,-500.0,0.00010958,2]
[335730962,1724467834378,-924.39,0.00010958,2]
[335730963,1724467834388,-500.0,0.00010958,2]
[335730964,1724467834397,-500.0,0.00010958,2]
[335730965,1724467834406,-500.0,0.00010958,2]
[335730966,1724467834415,-481.39272558,0.00010958,2]
[335730967,1724467834424,-534.9458136,0.00010958,2]
[335730968,1724467834433,-500.0,0.00010958,2]
[335730969,1724467834442,-289.55624606,0.00010958,2]
[335730970,1724467834452,-500.0,0.00010958,2]
[335730971,1724467834461,-500.0,0.00010958,2]
[335730972,1724467834470,-1455.19,0.00010958,2]
[335730973,1724467834480,-1455.19,0.00010958,2]
[335730974,1724467834489,-539.75217719,0.00010958,2]
[335730975,1724467834498,-500.0,0.00010958,2]
[335730976,1724467834507,-1981.91,0.00010958,2]
[335730977,1724467834517,-500.0,0.00010958,2]
[335730978,1724467834527,-1981.91,0.00010958,2]
[335730979,1724467834536,-500.0,0.00010958,2]
[335730980,1724467834546,-614.52895494,0.00010958,2]
[335730981,1724467834555,-945.08,0.00010958,2]
[335730982,1724467834564,-945.08,0.00010958,2]
[335730983,1724467834573,-153.92,0.00010959,2]
[335730984,1724467834583,-150.99,0.00010959,2]
[335730985,1724467834592,-150.0,0.00010959,2]
[335730986,1724467834602,-150.0,0.0001096,2]
[335730987,1724467834612,-500.0,0.0001096,2]
[335730988,1724467834621,-500.0,0.0001096,2]
[335730989,1724467834630,-150.0,0.00010963,2]
[335730990,1724467834640,-150.0,0.00010964,2]
[335730991,1724467834649,-150.0,0.00010965,2]
[335730992,1724467834659,-153.05764618,0.00010965,2]
[335730993,1724467834669,-150.0,0.00010966,2]
[335730994,1724467834678,-150.0,0.00010968,2]
[335730995,1724467834688,-150.0,0.0001097,2]
[335730996,1724467834698,-469.01178424,0.00010973,2]
[335730997,1724467834707,-201.12082733,0.00010973,2]
[335730998,1724467834717,-150.0,0.00010978,2]
[335730999,1724467834727,-150.0,0.0001098,2]
[335731000,1724467834736,-150.0,0.00010981,2]
[335731001,1724467834746,-150.0,0.00010981,2]
[335731002,1724467834755,-150.0,0.00010981,2]
[335731003,1724467834764,-677.0,0.00010985,2]
[335731004,1724467834774,-150.0,0.00010989,2]
[335731005,1724467834784,-150.0,0.0001099,2]
[335731006,1724467834798,-150.0,0.00010991,2]
[335731007,1724467834808,-150.0,0.00010992,2]
[335731008,1724467834817,-155.78505557,0.00010993,2]
[335731009,1724467834826,-500.0,0.00010998,2]
[335731010,1724467834836,-500.0,0.00010998,2]
[335731011,1724467834845,-500.0,0.00010998,2]
[335731012,1724467834854,-875.67,0.00010998,2]
[335731013,1724467834863,-525.66,0.00010998,2]
[335731014,1724467834875,-2116.61,0.00010998,2]
[335731015,1724467834884,-528.8732501,0.00010998,2]
[335731016,1724467834893,-500.0,0.00010998,2]
[335731017,1724467834902,-500.0,0.00010998,2]
[335731018,1724467834911,-500.0,0.00010998,2]
[335731019,1724467834920,-500.0,0.00010998,2]
[335731020,1724467834929,-500.0,0.00010998,2]
[335731021,1724467834938,-500.0,0.00010998,2]
[335731022,1724467834947,-500.0,0.00010998,2]
[335731023,1724467834958,-471.64837847,0.00010998,2]
[335731024,1724467834968,-500.0,0.00010998,2]
[335731025,1724467834979,-500.0,0.00010998,2]
[335731026,1724467834988,-500.0,0.00010998,2]
[335731027,1724467834997,-500.0,0.00010998,2]
[335731028,1724467835006,-500.0,0.00010998,2]
[335731029,1724467835016,-500.0,0.00010998,2]
[335731030,1724467835026,-500.0,0.00010998,2]
[335731031,1724467835035,-500.0,0.00010998,2]
[335731032,1724467835045,-9100.5,0.00010998,2]
[335731033,1724467835054,-9100.5,0.00010998,2]
[335731034,1724467835064,-9100.5,0.00010998,2]
[335731035,1724467835073,-9100.5,0.00010998,2]
[335731036,1724467835083,-9100.5,0.00010998,2]
[335731037,1724467835093,-9100.5,0.00010998,2]
[335731038,1724467835102,-1955.65,0.00010998,2]
[335731039,1724467835111,-1955.65,0.00010998,2]
[335731040,1724467835120,-1955.65,0.00010998,2]
[335731041,1724467835129,-1955.65,0.00010998,2]
[335731042,1724467835138,-1955.65,0.00010998,2]
[335731043,1724467835147,-1955.65,0.00010998,2]
[335731044,1724467835156,-1955.65,0.00010998,2]
[335731045,1724467835165,-1955.65,0.00010998,2]
[335731046,1724467835174,-500.0,0.00010998,2]
[335731047,1724467835184,-503.39483695,0.00010998,2]
[335731048,1724467835193,-500.0,0.00010998,2]
[335731049,1724467835203,-500.0,0.00010998,2]
[335731050,1724467835212,-500.0,0.00010998,2]
[335731051,1724467835221,-500.0,0.00010998,2]
[335731052,1724467835231,-500.0,0.00010998,2]
[335731053,1724467835241,-500.0,0.00010998,2]
[335731054,1724467835250,-500.0,0.00010998,2]
[335731055,1724467835259,-500.0,0.00010998,2]
[335731056,1724467835268,-1974.65,0.00010998,2]
[335731057,1724467835278,-1974.65,0.00010998,2]
[335731058,1724467835287,-1974.65,0.00010998,2]
[335731059,1724467835296,-1974.65,0.00010998,2]
[335731060,1724467835305,-1974.65,0.00010998,2]
[335731061,1724467835314,-1974.65,0.00010998,2]
[335731062,1724467835323,-1974.65,0.00010998,2]
[335731063,1724467835332,-1974.65,0.00010998,2]
[335731064,1724467835342,-705.39,0.00010998,2]
[335731065,1724467835350,-705.39,0.00010998,2]
[335731066,1724467835359,-705.39,0.00010998,2]
[335731067,1724467835368,-705.39,0.00010998,2]
[335731068,1724467835378,-705.39,0.00010998,2]
[335731069,1724467835386,-705.39,0.00010998,2]
[335731070,1724467835395,-705.39,0.00010998,2]
[335731071,1724467835405,-705.39,0.00010998,2]
[335731072,1724467835415,-2807.87,0.00010998,2]
[335731073,1724467835424,-2011.02,0.00010998,2]
[335731074,1724467835433,-2807.87,0.00010998,2]
[335731075,1724467835442,-2011.02,0.00010998,2]
[335731076,1724467835450,-2807.87,0.00010998,2]
[335731077,1724467835459,-2011.02,0.00010998,2]
[335731078,1724467835468,-2807.87,0.00010998,2]
[335731079,1724467835478,-2011.02,0.00010998,2]
[335731080,1724467835487,-2807.87,0.00010998,2]
[335731081,1724467835497,-2011.02,0.00010998,2]
[335731082,1724467835506,-2807.87,0.00010998,2]
[335731083,1724467835515,-2011.02,0.00010998,2]
[335731084,1724467835524,-2807.87,0.00010998,2]
[335731085,1724467835533,-2011.02,0.00010998,2]
[335731086,1724467835542,-2011.02,0.00010998,2]
[335731087,1724467835552,-2807.87,0.00010998,2]
[335731088,1724467835560,-500.0,0.00010998,2]
[335731089,1724467835570,-259.90794212,0.00010998,2]
[335731090,1724467835579,-500.0,0.00010998,2]
[335731091,1724467835588,-500.0,0.00010998,2]
[335731092,1724467835598,-500.0,0.00010998,2]
[335731093,1724467835606,-500.0,0.00010998,2]
[335731094,1724467835616,-500.0,0.00010998,2]
[335731095,1724467835625,-500.0,0.00010998,2]
[335731096,1724467835634,-500.0,0.00010998,2]
[335731097,1724467835643,-500.0,0.00010998,2]
[335731098,1724467835652,-500.0,0.00010998,2]
[335731099,1724467835662,-10167.62,0.00010998,2]
[335731100,1724467835671,-10167.62,0.00010998,2]
[335731101,1724467835680,-10167.62,0.00010998,2]
[335731102,1724467835689,-10167.62,0.00010998,2]
[335731103,1724467835699,-10014.75969638,0.00010998,2]
[335731104,1724467835918,-152.86030362,0.00010998,2]
[335731105,1724467835927,-1153.13969638,0.00010998,2]
[335731106,1724467835938,-929.99995,0.00010998,2]
[335731107,1724467835949,-1679.06194262,0.00010998,2]
[335731108,1724467835960,-2847.42189359,0.00010998,2]
[335731109,1724467835971,-3557.99651741,0.00010998,2]
[335731110,1724467835980,-6277.58528567,0.00010998,2]
[335731111,1724467835991,-2722.12504729,0.00010998,2]
[335731112,1724467837906,-150.0,0.00010726,2]
[335731113,1724467837915,-150.0,0.00010788,2]
[335731114,1724467837925,-150.0,0.00010807,2]
[335731115,1724467837934,-150.0,0.00010809,2]
[335731116,1724467837943,-150.0,0.00010817,2]
[335731117,1724467837953,-150.0,0.00010839,2]
[335731118,1724467837962,-150.0,0.00010858,2]
[335731119,1724467837971,-445.67112458,0.00010861,2]
[335731120,1724467837985,-55.74521272,0.00010861,2]
[335731121,1724467837994,-150.0,0.00010904,2]
[335731122,1724467838003,-150.0,0.00010908,2]
[335731123,1724467838012,-150.0,0.00010912,2]
[335731124,1724467838021,-150.0,0.0001092,2]
[335731125,1724467838030,-150.0,0.0001092,2]
[335731126,1724467838039,-150.0,0.00010941,2]
[335731127,1724467838048,-150.0,0.00010943,2]
[335731140,1724467838203,-150.0,0.00010962,2]
[335731142,1724467838213,-150.0,0.00010971,2]
[335731144,1724467838223,-954.78067797,0.00010998,2]
[335731146,1724467838235,-213.12898907,0.00010998,2]
[335731148,1724467838244,-727.57798438,0.00010998,2]
[335731151,1724467838255,-7356.68716553,0.00010998,2]
[335731159,1724467838323,-2083.35485009,0.00010998,2]
[335731161,1724467838332,-2153.37005086,0.00010998,2]
[335731163,1724467838344,-8014.24994914,0.00010998,2]
[335731165,1724467838354,-500.0,0.00010998,2]
[335731167,1724467838362,-500.0,0.00010998,2]
[335731169,1724467838372,-500.0,0.00010998,2]
[335731171,1724467838381,-500.0,0.00010998,2]
[335731173,1724467838391,-500.0,0.00010998,2]
[335731176,1724467838401,-500.0,0.00010998,2]
[335731178,1724467838410,-570.02,0.00010998,2]
[335731180,1724467838420,-570.02,0.00010998,2]
[335731182,1724467838429,-570.02,0.00010998,2]
[335731184,1724467838438,-570.02,0.00010998,2]
[335731186,1724467838447,-570.02,0.00010998,2]
[335731187,1724467838456,-570.02,0.00010998,2]
[335731189,1724467838465,-570.02,0.00010998,2]
[335731191,1724467838475,-570.02,0.00010998,2]
[335731193,1724467838484,-500.0,0.00010998,2]
[335731195,1724467838493,-500.0,0.00010998,2]
[335731197,1724467838503,-500.0,0.00010998,2]
[335731200,1724467838513,-500.0,0.00010998,2]
[335731202,1724467838523,-500.0,0.00010998,2]
[335731204,1724467838532,-500.0,0.00010998,2]
[335731206,1724467838541,-500.0,0.00010998,2]
[335731208,1724467838551,-506.18947969,0.00010998,2]
[335731210,1724467838560,-500.0,0.00010998,2]
[335731212,1724467838569,-500.0,0.00010998,2]
[335731214,1724467838578,-500.0,0.00010998,2]
[335731216,1724467838587,-500.0,0.00010998,2]
[335731218,1724467838596,-500.0,0.00010998,2]
[335731220,1724467838605,-500.0,0.00010998,2]
[335731222,1724467838613,-500.0,0.00010998,2]
[335731224,1724467838622,-500.0,0.00010998,2]
[335731226,1724467838631,-500.0,0.00010998,2]
[335731228,1724467838640,-526.66727384,0.00010998,2]
[335731230,1724467838650,-7744.13,0.00010998,2]
[335731232,1724467838659,-7744.13,0.00010998,2]
[335731234,1724467838668,-7744.13,0.00010998,2]
[335731236,1724467838676,-7334.34329733,0.00010998,2]
[335731239,1724467838697,-409.78670267,0.00010998,2]
[335731241,1724467838706,-302.64555324,0.00010998,2]
[335731243,1724467838717,-1605.98,0.00010998,2]
[335731245,1724467838728,-5835.50444676,0.00010998,2]
[335731247,1724467838737,-317.47767031,0.00010998,2]
[335731254,1724467838784,2127.3,0.00025,60]
[335731336,1724467839740,-462.7030002,0.00010998,2]
[335731357,1724467839934,-992.22492613,0.00010998,2]
[335731378,1724467840119,-303.80060881,0.00010998,2]
[335731380,1724467840133,-5667.92379455,0.00010998,2]
[335731382,1724467840143,-500.0,0.00010998,2]
[335731384,1724467840152,-7744.13,0.00010998,2]
[335731386,1724467840161,-500.0,0.00010998,2]
[335731388,1724467840171,-7744.13,0.00010998,2]
[335731390,1724467840180,-645.0,0.00010998,2]
[335731392,1724467840190,-379.06525725,0.00010998,2]
[335731394,1724467840200,-7744.13,0.00010998,2]
[335731396,1724467840211,-1197.02,0.00010998,2]
[335731398,1724467840221,-1197.02,0.00010998,2]
[335731400,1724467840231,-1197.02,0.00010998,2]
[335731402,1724467840241,-1197.02,0.00010998,2]
[335731404,1724467840250,-1197.02,0.00010998,2]
[335731406,1724467840259,-1197.02,0.00010998,2]
[335731408,1724467840268,-1197.02,0.00010998,2]
[335731410,1724467840277,-1197.02,0.00010998,2]
[335731412,1724467840287,-1197.02,0.00010998,2]
[335731414,1724467840297,-151.235952,0.00010998,2]
[335731416,1724467840308,-500.0,0.00010998,2]
[335731418,1724467840317,-500.0,0.00010998,2]
[335731420,1724467840327,-500.0,0.00010998,2]
[335731422,1724467840337,-500.0,0.00010998,2]
[335731424,1724467840346,-500.0,0.00010998,2]
[335731426,1724467840355,-500.0,0.00010998,2]
[335731428,1724467840364,-500.0,0.00010998,2]
[335731430,1724467840373,-500.0,0.00010998,2]
[335731432,1724467840382,-500.0,0.00010998,2]
[335731434,1724467840391,-500.0,0.00010998,2]
[335731436,1724467840400,-500.0,0.00010998,2]
[335731438,1724467840409,-500.0,0.00010998,2]
[335731440,1724467840418,-31860.38856179,0.00010998,2]
[335731442,1724467840429,-374.07477111,0.00010998,2]
[335731444,1724467840440,-5711.34007562,0.00010998,2]
[335731447,1724467840459,-4255.24964402,0.00010998,2]
[335731691,1724467842752,-150.0,0.00010727,2]
[335731693,1724467842761,-150.0,0.00010762,2]
[335731695,1724467842771,-150.0,0.00010794,2]
[335731697,1724467842780,-58.350001,0.00010818,2]
[335731699,1724467842794,-91.649999,0.00010818,2]
[335731701,1724467842803,-150.0,0.00010819,2]
[335731703,1724467842812,-150.0,0.0001083,2]
[335731705,1724467842821,-150.0,0.00010936,2]
[335731707,1724467842830,-150.0,0.00010947,2]
[335731709,1724467842839,-150.0,0.00010966,2]
[335731711,1724467842848,-150.0,0.00010984,2]
[335731713,1724467842857,-150.0,0.00010984,2]
[335731715,1724467842866,-7517.04694746,0.00010998,2]
[335731717,1724467842877,-49718.1,0.00010998,2]
[335731719,1724467842886,-49718.1,0.00010998,2]
[335731721,1724467842894,-49718.1,0.00010998,2]
[335731723,1724467842903,-49718.1,0.00010998,2]
[335731725,1724467842912,-500.0,0.00010998,2]
[335731727,1724467842921,-49718.1,0.00010998,2]
[335731729,1724467842930,-16918.15748058,0.00010998,2]
[335731731,1724467842945,-1433.76304378,0.00010998,2]
[335731733,1724467842956,-31366.17947564,0.00010998,2]
[335731735,1724467842965,-500.0,0.00010998,2]
[335731737,1724467842975,-49718.1,0.00010998,2]
[335731739,1724467842985,-500.0,0.00010998,2]
[335731741,1724467842994,-49718.1,0.00010998,2]
[335731743,1724467843003,-500.0,0.00010998,2]
[335731745,1724467843011,-500.0,0.00010998,2]
[335731747,1724467843020,-500.0,0.00010998,2]
[335731749,1724467843029,-500.0,0.00010998,2]
[335731751,1724467843038,-500.0,0.00010998,2]
[335731752,1724467843047,-924.39,0.00010998,2]
[335731753,1724467843055,-924.39,0.00010998,2]
[335731754,1724467843064,-500.0,0.00010998,2]
[335731755,1724467843074,-500.0,0.00010998,2]
[335731756,1724467843082,-924.39,0.00010998,2]
[335731757,1724467843091,-500.0,0.00010998,2]
[335731758,1724467843100,-924.39,0.00010998,2]
[335731759,1724467843109,-500.0,0.00010998,2]
[335731760,1724467843118,-924.39,0.00010998,2]
[335731761,1724467843127,-500.0,0.00010998,2]
[335731762,1724467843136,-924.39,0.00010998,2]
[335731763,1724467843145,-500.0,0.00010998,2]
[335731764,1724467843154,-500.0,0.00010998,2]
[335731765,1724467843163,-500.0,0.00010998,2]
[335731766,1724467843172,-202.359708,0.00010998,2]
[335731767,1724467843181,-202.359708,0.00010998,2]
[335731768,1724467843189,-151.0,0.00010998,2]
[335731769,1724467843198,-500.0,0.00010998,2]
[335731771,1724467843207,-500.0,0.00010998,2]
[335731773,1724467843216,-500.0,0.00010998,2]
[335731775,1724467843225,-500.0,0.00010998,2]
[335731777,1724467843234,-500.0,0.00010998,2]
[335731778,1724467843242,-500.0,0.00010998,2]
[335731780,1724467843251,-287.313193,0.00010998,2]
[335731782,1724467843260,-287.313193,0.00010998,2]
[335731784,1724467843270,-151.0,0.00010998,2]
[335731786,1724467843279,-227.583301,0.00010998,2]
[335731788,1724467843288,-530.75033435,0.00010998,2]
[335731790,1724467843299,-526.03100407,0.00010998,2]
[335731792,1724467843308,-1455.19,0.00010998,2]
[335731795,1724467843317,-1455.19,0.00010998,2]
[335731798,1724467843326,-1455.19,0.00010998,2]
[335731800,1724467843335,-1455.19,0.00010998,2]
[335731802,1724467843343,-1455.19,0.00010998,2]
[335731804,1724467843352,-1455.19,0.00010998,2]
[335731806,1724467843362,-1455.19,0.00010998,2]
[335731808,1724467843371,-1455.19,0.00010998,2]
[335731810,1724467843380,-151.0,0.00010998,2]
[335731812,1724467843389,-500.0,0.00010998,2]
[335731814,1724467843398,-1981.91,0.00010998,2]
[335731816,1724467843407,-1981.91,0.00010998,2]
[335731818,1724467843416,-1981.91,0.00010998,2]
[335731820,1724467843426,-1981.91,0.00010998,2]
[335731822,1724467843435,-1981.91,0.00010998,2]
[335731824,1724467843445,-1981.91,0.00010998,2]
[335731826,1724467843454,-1981.91,0.00010998,2]
[335731828,1724467843463,-1981.91,0.00010998,2]
[335731830,1724467843472,-945.08,0.00010998,2]